Cogmind - Beta 13 @@@ ROGUE MODE // 2024.04.02 @ 19:48:42 Player: Phosphorus Result: Destroyed by P-80 Master with Gamma Rifle Performance ------------- Evolutions (9) 4500 Regions Visited (33) 6600 Robots Destroyed (150) 750 Value Destroyed (3123) 3123 Prototype IDs (251) 5020 Alien Tech Used (7) 1400 Bonus (19229) 19229 TOTAL SCORE: 40622 Bonus ------- Triggered Max Security 2000 High Alert Combat Kills 16 Follower Combat Kills 110 Installed LC Capacitor 1000 Aligned with FarCom 300 Met Data Miner 300 Used Data Conduit 3000 Met Imprinter 300 Met Zhirov 300 Found Hidden Lab 3000 Decrypted A0 Command 3000 Scanned by Researcher 1000 Destroyed MAIN.C Shell 5000 Friendly Fire -97 Cogmind --------- Core Integrity 0/1600 Matter 300/300 Energy 100/100 System Corruption 26% Temperature Cool (0) Movement Core (50) Location -1/Command Parts ------- > --- POWER (2) -------- (None) > --- PROPULSION (9) --- (None) > --- UTILITY (10) ----- (None) > --- WEAPON (4) ------- (None) > --- INVENTORY (5) ---- Light Particle Reactor Transdimensional Reconstructor Neutron Cannon Guided Remote Datajack Peak State ------------ > --- POWER ------------ Micro Antimatter Reactor Micro Antimatter Reactor > --- PROPULSION ------- Cooled VTOL Module Cooled VTOL Module Cooled VTOL Module Impulse Thruster Diametric Drive Diametric Drive Diametric Drive Impulse Thruster Array > --- UTILITY ---------- Medium Storage Unit Stasis Canceller Improved Propulsion Shielding Experimental Utility Shielding Deep Network Scanner Quantum Router Quantum Router LC Capacitor > --- WEAPON ----------- Sigix Broadsword > --- INVENTORY -------- Transdimensional Reconstructor Transdimensional Reconstructor Neutron Cannon Drained L-Cannon Advanced Datajack Guided Remote Datajack Field Lobotomy Kit [Rating: 204] Favorites ----------- Power Cooled Ion Engine Engine Cooled Ion Engine Power Core Backup Power VII Reactor Micro Antimatter Reactor Propulsion Cooled VTOL Module Treads Advanced Treads Flight Unit Cooled VTOL Module Utility Advanced Hacking Suite Device Structural Scanner Storage Medium Storage Unit Processor Improved Targeting Computer Hackware Advanced Hacking Suite Protection Experimental Utility Shielding Artifact LC Capacitor Weapon Enhanced Autogun Energy Gun Improved Medium Laser Energy Cannon Particle Cannon Ballistic Gun Enhanced Autogun Launcher Rocket Array Special Weapon Field Lobotomy Kit Impact Weapon Shock Maul Slashing Weapon Katana Piercing Weapon Heavy Pick Special Melee Weapon Improved Datajack Build | -11 -10 -10 -9 -9 -9 -8 -8 -7 -7 -7 -7 -7 -7 -6 -6 -6 -6 -6 -5 -5 -5 -5 -5 -4 -4 -4 -4 -3 -2 -2 -2 -1 -1 ------- Run | Yrd Mat Min Mat Min Exi Min Mat Fac Was Fac Low Low Zio Pro Fac Low Low Dat Pro Fac Upp Upp Zhi Pro Fac Arm Lab Res Res Qua Sec Acc Com Slots Evolved 18 | . . . 2 . . . 2 2 . . . . . . 2 . . . . 2 . . . . 2 . . 2 2 . . 2 . Power 1 | . . . . . . . . . . . . . . . . . . . . . . . . . . . . 1 . . . . . Propulsion 7 | . . . 1 . . . 1 . . . . . . . 1 . . . . 1 . . . . 1 . . 1 1 . . . . Utility 8 | . . . 1 . . . 1 2 . . . . . . 1 . . . . 1 . . . . 1 . . . 1 . . . . Weapon 2 | . . . . . . . . . . . . . . . . . . . . . . . . . . . . . . . . 2 . Parts Attached 292 | 6 11 . 31 . 2 . 17 57 2 28 2 1 4 1 50 . 2 2 4 6 . . 3 4 7 6 7 11 7 1 3 4 13 Power 33 | 1 2 . 5 . 1 . 1 5 . 4 . . . . 8 . . 1 . . . . . . 1 . . 3 . . 1 . . Engine 12 | 1 2 . 5 . 1 . 1 . . 1 . . . . 1 . . . . . . . . . . . . . . . . . . Core 16 | . . . . . . . . 5 . 3 . . . . 7 . . 1 . . . . . . . . . . . . . . . Reactor 5 | . . . . . . . . . . . . . . . . . . . . . . . . . 1 . . 3 . . 1 . . Propulsion 60 | 2 1 . 10 . . . 10 14 . . . . . . 9 . 1 . . 2 . . . . 2 . . 7 1 . 1 . . Treads 22 | 2 1 . 9 . . . 10 . . . . . . . . . . . . . . . . . . . . . . . . . . Leg . | . . . . . . . . . . . . . . . . . . . . . . . . . . . . . . . . . . Wheel . | . . . . . . . . . . . . . . . . . . . . . . . . . . . . . . . . . . Hover . | . . . . . . . . . . . . . . . . . . . . . . . . . . . . . . . . . . Flight 38 | . . . 1 . . . . 14 . . . . . . 9 . 1 . . 2 . . . . 2 . . 7 1 . 1 . . Utility 104 | 1 6 . 8 . . . 3 20 2 21 . 1 1 1 18 . . 1 3 3 . . 1 . 1 2 4 1 2 . 1 3 . Device 35 | . 3 . 1 . . . . 6 1 5 . 1 1 1 9 . . . 1 1 . . 1 . 1 . 1 . 1 . . 1 . Storage 8 | 1 2 . 2 . . . . 1 . 1 . . . . 1 . . . . . . . . . . . . . . . . . . Processor 7 | . 1 . 3 . . . 1 . . 1 . . . . 1 . . . . . . . . . . . . . . . . . . Hackware 34 | . . . . . . . . 12 . 10 . . . . 4 . . 1 2 1 . . . . . . 1 . 1 . . 2 . Protection 19 | . . . 2 . . . 2 1 1 4 . . . . 3 . . . . 1 . . . . . 2 1 1 . . 1 . . Artifact 1 | . . . . . . . . . . . . . . . . . . . . . . . . . . . 1 . . . . . . Weapon 95 | 2 2 . 8 . 1 . 3 18 . 3 2 . 3 . 15 . 1 . 1 1 . . 2 4 3 4 3 . 4 1 . 1 13 Energy Gun 3 | . . . 1 . . . . . . . . . . . 1 . . . . . . . . . . . 1 . . . . . . Energy Cannon 12 | . . . 2 . . . . . . . . . . . 1 . . . . . . . . . 1 1 . . 2 . . . 5 Ballistic Gun 12 | 2 2 . 5 . . . 3 . . . . . . . . . . . . . . . . . . . . . . . . . . Ballistic Cannon . | . . . . . . . . . . . . . . . . . . . . . . . . . . . . . . . . . . Launcher 10 | . . . . . . . . 1 . . 1 . . . 5 . 1 . . . . . . 2 . . . . . . . . . Special Weapon 1 | . . . . . . . . . . . . . . . . . . . . . . . . . . . . . . . . . 1 Impact Weapon 9 | . . . . . . . . . . . . . . . . . . . 1 1 . . 1 2 1 1 . . 2 . . . . Slashing Weapon 23 | . . . . . . . . 12 . . . . 2 . 1 . . . . . . . 1 . 1 1 . . . 1 . . 4 Piercing Weapon 8 | . . . . . . . . . . 2 1 . 1 . 4 . . . . . . . . . . . . . . . . . . Special Melee Weapon 17 | . . . . . 1 . . 5 . 1 . . . . 3 . . . . . . . . . . 1 2 . . . . 1 3 Unidentified Prototypes 27 | . . . 6 . . . . 2 1 1 . . . . 8 . . 1 2 . . . 1 . . . 4 . . 1 . . . Parts Lost 43 | . 1 . 5 . . . 1 6 . . . . . . 5 . 2 . . . . . . . . 1 . . . . . 1 21 Power 8 | . 1 . 1 . . . . 2 . . . . . . 1 . 1 . . . . . . . . . . . . . . . 2 Propulsion 16 | . . . 2 . . . 1 2 . . . . . . 2 . 1 . . . . . . . . . . . . . . . 8 Utility 13 | . . . 1 . . . . 2 . . . . . . . . . . . . . . . . . . . . . . . 1 9 Weapon 6 | . . . 1 . . . . . . . . . . . 2 . . . . . . . . . . 1 . . . . . . 2 Highest Loss Streak 21 | . 1 . 1 . . . 1 2 . . . . . . 1 . 1 . . . . . . . . 1 . . . . . 1 21 To Critical Strikes . | . . . . . . . . . . . . . . . . . . . . . . . . . . . . . . . . . . Average Slot Usage (%) 95 | . 99 100 99 100 100 100 88 87 100 99 100 100 100 100 98 93 94 93 91 92 94 94 93 94 91 96 98 85 86 83 79 78 73 Engine 5 | . 13 14 11 11 11 11 8 . . . . . . . . . . . . . . . . . . . . . . . . . . Core 2 | . . . . . . . . 6 7 7 7 7 7 7 5 6 6 6 6 5 5 5 5 5 . . . . . . . . . Treads 16 | . 27 28 32 33 33 33 35 . . . . . . . . . . . . . . . . . . . . . . . . . . Flight 15 | . . . . . . . . 30 30 30 30 30 30 30 32 33 32 33 33 35 35 35 35 35 35 36 36 36 39 39 35 32 27 Device 7 | . 13 14 4 11 11 11 9 5 7 3 . 4 7 7 5 6 6 6 5 3 5 5 4 5 7 7 4 . . 4 4 5 7 Storage 8 | . 14 14 11 11 11 11 9 6 7 7 7 7 7 7 5 6 6 6 6 5 5 5 5 5 5 5 5 4 4 4 4 4 3 Processor 3 | . . . 11 11 11 11 . . . . . . . . . . . . . . . . . . . . . . . . . . . Hackware 12 | . . . . . . . . 28 30 30 30 30 30 30 26 26 26 26 27 23 23 23 23 23 21 21 20 14 13 13 13 13 19 Protection 4 | . . . 6 . . . 7 1 . 2 7 2 . . 5 6 6 6 6 11 11 11 11 11 10 12 14 9 8 4 6 6 3 Ballistic Gun 9 | . 27 28 17 22 11 11 17 . . . . . . . . . . . . . . . . . . . . . . . . . . Slashing Weapon 1 | . . . . . . . . 5 7 3 . . 4 7 1 . . . . . . . . . . 1 . . . 3 4 4 1 Piercing Weapon 1 | . . . . . . . . . . 3 6 7 2 . 4 6 6 6 . . . . . . . . . . . . . . . Special Melee Weapon 2 | . . . . . 10 11 . . 7 7 7 7 7 7 5 . . . . . . . . . . 2 5 4 4 . . 4 1 Naked Turns . | . . . . . . . . . . . . . . . . . . . . . . . . . . . . . . . . . . Heaviest Build 110 | 10 29 27 97 95 95 93 110 21 19 20 19 19 20 20 26 22 29 28 28 30 30 30 31 34 39 39 50 52 54 58 58 47 104 Greatest Support 89 | 40 40 40 66 66 66 66 89 21 20 20 20 20 20 20 35 33 29 35 29 36 36 36 36 42 49 49 43 52 57 63 59 59 59 Greatest Overweight (x) 4 | . . . 2 1 1 1 1 4 . . . . . . 1 . . . . . . . . . . . 1 1 . . . . 3 Average Overweight (x) . | . . . . 1 1 1 1 . . . . . . . . . . . . . . . . . . . . . . . . . . Largest Inventory Capacity 25 | 8 15 15 25 25 25 25 25 25 10 10 10 10 10 10 10 10 10 10 10 10 10 10 10 10 10 10 10 10 10 10 10 10 10 Average Capacity 15 | 6 11 15 24 25 25 25 25 10 10 9 10 10 10 10 9 10 10 10 10 10 10 10 10 10 10 10 10 10 10 10 10 10 9 Most Carried 25 | 4 14 15 25 25 25 25 25 25 10 10 8 8 10 9 10 10 10 10 10 9 8 8 10 10 9 10 10 10 10 10 10 10 10 Average Carried 14 | 2 9 14 22 24 24 25 24 8 9 9 8 8 8 7 8 10 9 8 9 7 8 8 9 9 8 9 9 9 9 9 9 9 7 Final Capacity 25 | 8 15 15 25 25 25 25 25 10 10 10 10 10 10 10 10 10 10 10 10 10 10 10 10 10 10 10 10 10 10 10 10 10 5 Final Carried 25 | 4 13 15 25 25 25 25 25 9 9 8 8 8 8 7 10 10 9 10 10 8 8 8 10 10 9 10 10 10 10 10 10 10 4 Class Distribution -------------------- 49% | Mutant 33% | Hacker-Sprinter 11% | Wizard-Sprinter Dominant Class ---------------- Mutant | -10/Materials Mutant | -10/Mines Mutant | -9/Materials Mutant | -9/Mines Mutant | -9/Exiles Mutant | -8/Mines Mutant | -8/Materials Hacker-Sprinter | -7/Factory Hacker-Sprinter | -7/Waste Hacker-Sprinter | -7/Factory Hacker-Sprinter | -7/Lower Caves Hacker-Sprinter | -7/Lower Caves Hacker-Sprinter | -7/Zion Hacker-Sprinter | -6/Proximity Caves Hacker-Sprinter | -6/Factory Hacker-Sprinter | -6/Lower Caves Hacker-Sprinter | -6/Lower Caves Wizard-Sprinter | -6/Data Miner Wizard-Sprinter | -5/Proximity Caves Wizard-Sprinter | -5/Factory Wizard-Sprinter | -5/Upper Caves Wizard-Sprinter | -5/Upper Caves Wizard-Sprinter | -5/Zhirov Wizard-Sprinter | -4/Proximity Caves Wizard-Sprinter | -4/Factory Wizard-Sprinter | -4/Armory Wizard-Sprinter | -4/Lab Wizard-Sprinter | -3/Research Wizard-Sprinter | -2/Research Wizard-Sprinter | -2/Quarantine Wizard-Sprinter | -2/Section 7 Wizard-Sprinter | -1/Access Wizard-Mutant | -1/Command Resources | -11 -10 -10 -9 -9 -9 -8 -8 -7 -7 -7 -7 -7 -7 -6 -6 -6 -6 -6 -5 -5 -5 -5 -5 -4 -4 -4 -4 -3 -2 -2 -2 -1 -1 ----------- Run | Yrd Mat Min Mat Min Exi Min Mat Fac Was Fac Low Low Zio Pro Fac Low Low Dat Pro Fac Upp Upp Zhi Pro Fac Arm Lab Res Res Qua Sec Acc Com Matter Collected 4833 | 268 235 48 631 192 . . 811 576 . 175 207 95 55 10 432 . 109 28 241 61 3 . 40 . . . . 305 67 . 73 . 171 Remotely . | . . . . . . . . . . . . . . . . . . . . . . . . . . . . . . . . . . Salvage Created 6397 | 99 453 101 1247 168 . . 1013 549 . 202 259 144 . . 803 . 112 28 . 27 96 50 297 . 44 . . 329 183 . . . 193 Parts 338 | 1 43 5 74 10 . . 71 35 . 13 5 2 . . 52 . 4 4 . . . . 2 . 5 . . 1 6 . . . 5 Haulers Intercepted 21 | . 1 . 3 . . . 6 4 . 3 . . . . 4 . . . . . . . . . . . . . . . . . . Recyclers Shooed 7 | . . . 4 . . . 3 . . . . . . . . . . . . . . . . . . . . . . . . . . Parts Field Recycled . | . . . . . . . . . . . . . . . . . . . . . . . . . . . . . . . . . . Retrieved Matter . | . . . . . . . . . . . . . . . . . . . . . . . . . . . . . . . . . . Parts Self-Destructed 3 | . . . . . . . . . . . . 2 1 . . . . . . . . . . . . . . . . . . . . Prevented 5 | . . . . . . . . . . . . 4 . . . . . . . . . . 1 . . . . . . . . . . Kills | -11 -10 -10 -9 -9 -9 -8 -8 -7 -7 -7 -7 -7 -7 -6 -6 -6 -6 -6 -5 -5 -5 -5 -5 -4 -4 -4 -4 -3 -2 -2 -2 -1 -1 ------- Run | Yrd Mat Min Mat Min Exi Min Mat Fac Was Fac Low Low Zio Pro Fac Low Low Dat Pro Fac Upp Upp Zhi Pro Fac Arm Lab Res Res Qua Sec Acc Com Combat Hostiles Destroyed 73 | . 8 2 25 8 . . 12 2 . . 4 . . . 10 . 2 . . . . . . . . . . . . . . . . Melee 6 | . . . 1 . . . . 2 . . . . . . 3 . . . . . . . . . . . . . . . . . . Guns 40 | . 8 2 10 8 . . 12 . . . . . . . . . . . . . . . . . . . . . . . . . . Cannons 14 | . . . 14 . . . . . . . . . . . . . . . . . . . . . . . . . . . . . . AOE 13 | . . . . . . . . . . . 4 . . . 7 . 2 . . . . . . . . . . . . . . . . Classes Destroyed 18 | 1 7 . 2 1 . . 3 1 . . . 1 . . 2 . . . . . . . . . . . . . . . . . . Worker 10 | . 1 . 3 . . . 2 1 . . . . . . 2 . . . . . . . . . . . . . 1 . . . . Builder 9 | . 1 . . . . . . 1 . . . . . . . . . . . 1 . . . . 2 . . 2 2 . . . . Tunneler 2 | . . . . . . . . . . . . . . . 2 . . . . . . . . . . . . . . . . . . Hauler 21 | . 1 . 3 . . . 6 4 . 3 . . . . 4 . . . . . . . . . . . . . . . . . . Recycler 13 | 1 1 . 3 . . . 2 2 . . . . . . . . . . . . . . . . . . . 2 1 . . . 1 Mechanic 1 | . . . . . . . 1 . . . . . . . . . . . . . . . . . . . . . . . . . . Operator 6 | . 1 . 2 . . . . 1 . 1 . . . . 1 . . . . . . . . . . . . . . . . . . Drone 1 | . . . . . . . . . . . . . . . 1 . . . . . . . . . . . . . . . . . . Watcher 15 | . 3 . 1 . . . . 4 . 1 . . . . 3 . . . . . . . . . . . . 1 1 . . . 1 Swarmer 32 | . 6 . 8 4 . . . 1 . . 4 . . . 7 . 2 . . . . . . . . . . . . . . . . Cutter 3 | . . . . . . . 3 . . . . . . . . . . . . . . . . . . . . . . . . . . Grunt 23 | . 2 2 13 2 . . 4 . . . . . . . . . . . . . . . . . . . . . . . . . . Duelist 2 | . . . 1 . . . 1 . . . . . . . . . . . . . . . . . . . . . . . . . . Sentry 6 | . . . 3 . . . 3 . . . . . . . . . . . . . . . . . . . . . . . . . . Demolisher 2 | . . . . 2 . . . . . . . . . . . . . . . . . . . . . . . . . . . . . Hunter 1 | . . . . . . . 1 . . . . . . . . . . . . . . . . . . . . . . . . . . Programmer 3 | . . . . . . . . 1 . . . . . . 2 . . . . . . . . . . . . . . . . . . Decomposer 3 | . . . . . . . . . . . 3 . . . . . . . . . . . . . . . . . . . . . . Packrat 4 | . . . . . . . . . . . 3 . . . . . 1 . . . . . . . . . . . . . . . . Samaritan 4 | . . . . . . . . . . . . 2 . . . . . . . . 2 . . . . . . . . . . . . Best Kill Streak 7 | 1 5 2 6 6 . . 4 4 . 1 4 . . . 7 . 2 1 . 1 . . . . 2 . . 5 2 . . . 1 Combat Bots Only 6 | . 3 2 5 6 . . 3 1 . . 4 . . . 4 . 2 . . . . . . . . . . . . . . . . Max Kills in Single Turn 6 | 1 2 1 2 1 . . 1 1 . 1 4 1 . . 6 . 1 1 . 1 1 . . . 1 . . 1 1 . . . 1 Gunslinging 1 | . 1 . . . . . . . . . . . . . . . . . . . . . . . . . . . . . . . . Exploded 3 | . . . . . . . . . . . 3 . . . 3 . 1 . . . . . . . . . . . . . . . . Melee 1 | . . . 1 . . . . 1 . . . . . . 1 . . . . . . . . . . . . . . . . . . Uniques/NPCs Destroyed 1 | . . . . . . . . . . . . . . . . . . 1 . . . . . . . . . . . . . . . Data Miner (-6/Data Miner) Combat | -11 -10 -10 -9 -9 -9 -8 -8 -7 -7 -7 -7 -7 -7 -6 -6 -6 -6 -6 -5 -5 -5 -5 -5 -4 -4 -4 -4 -3 -2 -2 -2 -1 -1 -------- Run | Yrd Mat Min Mat Min Exi Min Mat Fac Was Fac Low Low Zio Pro Fac Low Low Dat Pro Fac Upp Upp Zhi Pro Fac Arm Lab Res Res Qua Sec Acc Com Hostile Shots Fired 857 | . 41 11 148 51 . . 70 63 . 25 4 . . 2 99 4 15 5 6 . 2 . . 11 8 19 . 5 6 5 26 56 175 Missed 337 | . 13 3 48 15 . . 12 29 . 19 3 . . 1 42 2 10 2 4 . 2 . . 6 6 8 . 1 1 2 12 41 55 Damage Taken 10726 | . 270 112 1198 635 . . 927 543 . 43 71 . . 14 941 45 131 143 26 . . . . 83 106 189 . 24 116 49 281 346 4433 Core 2681 | . 65 15 109 100 . . 45 136 . . . . . . 306 16 40 48 26 . . . . 16 38 63 . . 24 . 118 28 1488 Absorbed by Shields . | . . . . . . . . . . . . . . . . . . . . . . . . . . . . . . . . . . Redirected to Shielding 388 | . . . . . . . . . . 3 10 . . . 60 . 26 . . . . . . 17 23 16 . . 39 . . 62 132 Regen/Repaired (Parts) 1452 | . . . . . . . 489 57 . 12 . . . . 326 . . . . . . . . . 187 . . . . 49 14 214 104 Core Remaining (%) 82 | 100 . 68 . . . 47 91 . . . . . . 80 . . . . 48 . . . . 98 . . 100 100 . . 90 . . Volleys Fired 302 | 4 54 7 95 24 . . 77 . . . 4 . . . 5 . 3 . . . . . . . 2 2 . . 18 . . . 7 Largest 2 | 2 2 2 2 2 . . 2 . . . 1 . . . 1 . 1 . . . . . . . 1 1 . . 1 . . . 1 Hottest 900 | 40 40 40 91 50 . . 50 . . . 45 . . . 45 . 45 . . . . . . . 90 90 . . 90 . . . 900 Shots Fired 555 | 8 108 14 180 48 . . 155 . . . 4 . . . 5 . 4 . . . . . . . 2 2 . . 18 . . . 7 Gun 445 | 8 108 14 112 48 . . 155 . . . . . . . . . . . . . . . . . . . . . . . . . . Cannon 96 | . . . 68 . . . . . . . . . . . . . . . . . . . . . 2 2 . . 18 . . . 6 Launcher 13 | . . . . . . . . . . . 4 . . . 5 . 4 . . . . . . . . . . . . . . . . Special 1 | . . . . . . . . . . . . . . . . . . . . . . . . . . . . . . . . . 1 Kinetic 445 | 8 108 14 112 48 . . 155 . . . . . . . . . . . . . . . . . . . . . . . . . . Thermal 96 | . . . 68 . . . . . . . . . . . . . . . . . . . . . 2 2 . . 18 . . . 6 Explosive 13 | . . . . . . . . . . . 4 . . . 5 . 4 . . . . . . . . . . . . . . . . Electromagnetic . | . . . . . . . . . . . . . . . . . . . . . . . . . . . . . . . . . . Robot Hit Streak 20 | 4 12 3 20 9 . . 20 . . . 3 . . . 3 . 1 . . . . . . . . . . . 2 . . . 4 Robot Miss Streak 9 | 1 4 2 4 4 . . 5 . . . 9 . . . 3 . 4 . . . . . . . . . . . . . . . . Penetration Max 4 | . . . . . . . . . . . . . . . . . . . . . . . . . . . . . . . . . 4 Secondary Targets 8 | . 2 1 1 1 . . 3 . . . . . . . . . . . . . . . . . . . . . . . . . . Max Gunslinging Chain 1 | . 1 1 1 1 . . 1 . . . . . . . . . . . . . . . . . . . . . . . . . . Shots Hit Robots 458 | 7 63 9 125 33 3 . 96 24 . 14 8 4 . . 37 . 2 1 . 1 2 1 6 . 2 5 1 5 5 . . . 4 Core Hits 195 | 2 28 4 46 10 . . 39 13 . 4 11 1 . . 25 . 4 1 . . . . 2 . 2 . . . 2 . . . 1 Critical Kills 1 | . 1 . . . . . . . . . . . . . . . . . . . . . . . . . . . . . . . . Critical Parts Destroyed 6 | . . . . . . . 1 . . . . . . . . . . . . . 1 1 1 . . . . 1 1 . . . . Critical Strikes 13 | . 1 . . . . . 1 . . 1 1 . . . 4 . . . . . 1 1 1 . . . . 1 1 . . . . Destroy 2 | . 1 . . . . . 1 . . . . . . . . . . . . . . . . . . . . . . . . . . Smash 5 | . . . . . . . . . . . . . . . . . . . . . 1 1 1 . . . . 1 1 . . . . Sever 2 | . . . . . . . . . . . . . . . 2 . . . . . . . . . . . . . . . . . . Impale 4 | . . . . . . . . . . 1 1 . . . 2 . . . . . . . . . . . . . . . . . . Melee Attacks 471 | . . . . . 3 . 1 72 . 61 6 4 2 2 136 1 1 18 1 7 3 2 6 17 14 22 9 19 13 4 18 24 5 Impact 97 | . . . . . . . . . . . . . . . . . . . 1 7 3 2 5 17 7 15 7 19 13 1 . . . Slashing 195 | . . . . . . . . 70 . 33 . . . 2 30 . . . . . . . 1 . 7 2 . . . 3 18 24 5 Piercing 161 | . . . . . . . . . . 28 6 4 2 . 101 1 1 18 . . . . . . . . . . . . . . . Sneak Attacks 59 | . . . . . 3 . . 14 . 4 5 3 . . 10 . 1 1 . 1 2 . . . 2 5 . 5 2 . . . 1 Combat Hostiles 1 | . . . . . . . . . . . . . . . 1 . . . . . . . . . . . . . . . . . . Follow-up Attacks . | . . . . . . . . . . . . . . . . . . . . . . . . . . . . . . . . . . Damage Inflicted 13733 | 57 569 103 2260 577 . . 1795 1198 . 713 858 247 . . 2202 . 202 109 . 166 217 155 706 . 157 . . 676 491 . . . 275 Guns 4003 | 57 555 101 1023 570 . . 1697 . . . . . . . . . . . . . . . . . . . . . . . . . . Cannons 1270 | . . . 1149 . . . . . . . . . . . . . . . . . . . . . . . . . 121 . . . . Explosions 1135 | . . . . . . . . . . . 483 . . . 559 . 93 . . . . . . . . . . . . . . . . Melee 7116 | . . . . . . . . 1198 . 713 375 247 . . 1643 . 109 109 . 166 217 155 706 . 157 . . 676 370 . . . 275 Ramming 209 | . 14 2 88 7 . . 98 . . . . . . . . . . . . . . . . . . . . . . . . . . Kinetic 4003 | 57 555 101 1023 570 . . 1697 . . . . . . . . . . . . . . . . . . . . . . . . . . Thermal 1270 | . . . 1149 . . . . . . . . . . . . . . . . . . . . . . . . . 121 . . . . Explosive 1135 | . . . . . . . . . . . 483 . . . 559 . 93 . . . . . . . . . . . . . . . . Electromagnetic . | . . . . . . . . . . . . . . . . . . . . . . . . . . . . . . . . . . Impact 2188 | . . . . . . . . . . . . . . . . . . . . 166 217 155 604 . . . . 676 370 . . . . Slashing 2883 | . . . . . . . . 1198 . 346 . . . . 805 . . . . . . . 102 . 157 . . . . . . . 275 Piercing 2045 | . . . . . . . . . . 367 375 247 . . 838 . 109 109 . . . . . . . . . . . . . . . Highest Corruption 25 | . . . . . . . 1 1 6 6 6 6 6 . 6 6 6 6 6 . . . . . . . . . . 1 2 2 25 Average Corruption 2 | . . . . . . . 1 1 5 6 6 6 6 . 2 6 6 6 6 . . . . . . . . . . 1 1 1 6 Corruption Purged . | . . . . . . . . . . . . . . . . . . . . . . . . . . . . . . . . . . Corruption Blocked . | . . . . . . . . . . . . . . . . . . . . . . . . . . . . . . . . . . Effects 109 | . . . . . . . 18 9 2 34 3 . 1 . 21 6 2 4 3 . . . . . . . . . . . 2 1 3 Message Errors 27 | . . . . . . . 7 1 . 9 1 . . . 5 3 . . . . . . . . . . . . . . 1 . . Matter Fused 26 | . . . . . . . 3 1 1 7 . . 1 . 7 1 . 1 1 . . . . . . . . . . . 1 . 2 Heat Flow Errors 12 | . . . . . . . 2 2 1 4 . . . . 2 1 . . . . . . . . . . . . . . . . . Energy Discharges 16 | . . . . . . . 1 3 . 3 1 . . . 3 . . 2 2 . . . . . . . . . . . . 1 . Parts Fused 3 | . . . . . . . 1 . . . . . . . 2 . . . . . . . . . . . . . . . . . . Data Loss (minor) 12 | . . . . . . . 2 . . 6 1 . . . 1 . 1 1 . . . . . . . . . . . . . . . Data Loss (major) 8 | . . . . . . . 1 2 . 4 . . . . . 1 . . . . . . . . . . . . . . . . . Misfires 2 | . . . . . . . 1 . . . . . . . . . 1 . . . . . . . . . . . . . . . . Alerts 2 | . . . . . . . . . . 1 . . . . 1 . . . . . . . . . . . . . . . . . . Misdirections 1 | . . . . . . . . . . . . . . . . . . . . . . . . . . . . . . . . . 1 Overload Shots . | . . . . . . . . . . . . . . . . . . . . . . . . . . . . . . . . . . Overflow Damage 2621 | . . . 32 . . . . 158 . 84 220 85 . . 232 . 1 . . 126 213 155 301 . . . . 562 315 . . . 137 Projectiles 42 | . . . 32 . . . . . . . . . . . . . . . . . . . . . . . . . 10 . . . . Explosions 25 | . . . . . . . . . . . 6 . . . 18 . 1 . . . . . . . . . . . . . . . . Melee 2554 | . . . . . . . . 158 . 84 214 85 . . 214 . . . . 126 213 155 301 . . . . 562 305 . . . 137 Knockbacks 4 | . . . . . . . . . . . . . . . . . . . . . 1 . . . . . . 2 1 . . . . Impact 4 | . . . . . . . . . . . . . . . . . . . . . 1 . . . . . . 2 1 . . . . Kinetic . | . . . . . . . . . . . . . . . . . . . . . . . . . . . . . . . . . . Secondary . | . . . . . . . . . . . . . . . . . . . . . . . . . . . . . . . . . . Self-Inflicted Damage 181 | . . . . . . . . . . . 60 . . . 53 . 68 . . . . . . . . . . . . . . . . Shots 8 | . . . . . . . . . . . 2 . . . 3 . 3 . . . . . . . . . . . . . . . . Rammed 20 | . 3 1 10 2 . . 4 . . . . . . . . . . . . . . . . . . . . . . . . . . Targets Rammed 22 | . 3 1 12 2 . . 4 . . . . . . . . . . . . . . . . . . . . . . . . . . Kicked . | . . . . . . . . . . . . . . . . . . . . . . . . . . . . . . . . . . Crushed 2 | . . . 2 . . . . . . . . . . . . . . . . . . . . . . . . . . . . . . Highest Temperature 456 | . 9 9 306 22 . . 227 342 206 211 . . . . 456 190 34 161 15 222 183 171 144 220 229 209 211 76 216 87 231 4 300 Average Temperature 70 | . 7 6 110 8 . . 107 135 105 93 . . . . 46 39 11 18 6 60 67 72 71 63 69 90 56 37 70 33 70 4 128 Received Heat Transfer 1185 | . 75 66 462 174 . . 225 27 . 18 . . . . 57 . . . . . . . . 12 9 33 . . . . 18 . 9 Effects 7 | . . . 5 . . . . 1 . . . . . . 1 . . . . . . . . . . . . . . . . . . Shutdowns 1 | . . . . . . . . . . . . . . . 1 . . . . . . . . . . . . . . . . . . Energy Bleed 3 | . . . 2 . . . . 1 . . . . . . . . . . . . . . . . . . . . . . . . . Interference 2 | . . . 2 . . . . . . . . . . . . . . . . . . . . . . . . . . . . . . Matter Decay 1 | . . . 1 . . . . . . . . . . . . . . . . . . . . . . . . . . . . . . Siege Activations . | . . . . . . . . . . . . . . . . . . . . . . . . . . . . . . . . . . Robots Corrupted . | . . . . . . . . . . . . . . . . . . . . . . . . . . . . . . . . . . Combat Hostiles . | . . . . . . . . . . . . . . . . . . . . . . . . . . . . . . . . . . Parts Fried 15 | . . . . . . . . . . . . . . . . . . . . . 4 . 1 . . . . 9 1 . . . . Impact Corruptions 36 | . . . . . . . . . . . . . . . . . . . . 2 8 5 3 . . . . 11 7 . . . . Robots Melted . | . . . . . . . . . . . . . . . . . . . . . . . . . . . . . . . . . . Combat Hostiles . | . . . . . . . . . . . . . . . . . . . . . . . . . . . . . . . . . . Parts Melted 1 | . . . 1 . . . . . . . . . . . . . . . . . . . . . . . . . . . . . . Heat Transferred 2072 | . . . 2072 . . . . . . . . . . . . . . . . . . . . . . . . . . . . . . Parts Sabotaged . | . . . . . . . . . . . . . . . . . . . . . . . . . . . . . . . . . . Parts Stolen . | . . . . . . . . . . . . . . . . . . . . . . . . . . . . . . . . . . Parts Stripped . | . . . . . . . . . . . . . . . . . . . . . . . . . . . . . . . . . . Power Chain Reactions . | . . . . . . . . . . . . . . . . . . . . . . . . . . . . . . . . . . Alert | -11 -10 -10 -9 -9 -9 -8 -8 -7 -7 -7 -7 -7 -7 -6 -6 -6 -6 -6 -5 -5 -5 -5 -5 -4 -4 -4 -4 -3 -2 -2 -2 -1 -1 ------- Run | Yrd Mat Min Mat Min Exi Min Mat Fac Was Fac Low Low Zio Pro Fac Low Low Dat Pro Fac Upp Upp Zhi Pro Fac Arm Lab Res Res Qua Sec Acc Com Peak Influence 3016 | 5 139 50 475 309 . . 136 324 128 237 . . . . 466 . . . . 80 . . . . 146 252 . 143 201 1744 1999 1537 3016 Initial 1199 | . 3 . 19 169 . . . 61 83 89 . . . . 9 . . . . . . . . . 56 71 . . 80 112 1100 1199 983 Average 169 | 1 42 46 216 167 . . 45 138 119 98 . . . . 147 . . . . 38 . . . . 91 115 . 71 130 1661 1762 1359 2022 Maximum Alert Level 5 | . . . 2 1 . . . 1 . 1 . . . . 2 . . . . . . . . . . 1 . . 1 5 5 4 5 Low Security (%) 78 | 100 100 100 50 66 . 100 100 86 100 92 . . . . 63 . . . . 100 . . . . 100 85 . 100 99 1 . . . Level 1 13 | . . . 24 33 . . . 13 . 7 . . . . 31 . . . . . . . . . . 14 . . . . . . . Level 2 4 | . . . 25 . . . . . . . . . . . 5 . . . . . . . . . . . . . . . . . . Level 3 . | . . . . . . . . . . . . . . . . . . . . . . . . . . . . . . . . . 1 Level 4 1 | . . . . . . . . . . . . . . . . . . . . . . . . . . . . . . . . 100 34 Level 5 . | . . . . . . . . . . . . . . . . . . . . . . . . . . . . . . . . . 64 High Security . | . . . . . . . . . . . . . . . . . . . . . . . . . . . . . . . . . . Max Security 1 | . . . . . . . . . . . . . . . . . . . . . . . . . . . . . . 98 99 . . Squads Dispatched 56 | . . . 3 . . . 3 8 . 8 . . . . 15 . . . . 2 . . . . 1 2 . 1 1 1 8 3 . Investigation 22 | . . . 1 . . . . 6 . 6 . . . . 5 . . . . 2 . . . . . 1 . . . . . 1 . Extermination 8 | . . . . . . . . 1 . 1 . . . . 4 . . . . . . . . . 1 . . . 1 . . . . Reinforcement 19 | . . . 2 . . . 3 . . 1 . . . . 6 . . . . . . . . . . 1 . 1 . 1 2 2 . Assault 6 | . . . . . . . . . . . . . . . . . . . . . . . . . . . . . . . 6 . . Garrison 1 | . . . . . . . . 1 . . . . . . . . . . . . . . . . . . . . . . . . . Intercept . | . . . . . . . . . . . . . . . . . . . . . . . . . . . . . . . . . . Searches Triggered . | . . . . . . . . . . . . . . . . . . . . . . . . . . . . . . . . . . Construction Impeded . | . . . . . . . . . . . . . . . . . . . . . . . . . . . . . . . . . . Haulers Reinforced 3 | . . . . . . . . . . . . . . . 3 . . . . . . . . . . . . . . . . . . Active Scanning Responses . | . . . . . . . . . . . . . . . . . . . . . . . . . . . . . . . . . . Cargo Convoy Interrupts 1 | . . . . . . . . . . . . . . . 1 . . . . . . . . . . . . . . . . . . Stealth | -11 -10 -10 -9 -9 -9 -8 -8 -7 -7 -7 -7 -7 -7 -6 -6 -6 -6 -6 -5 -5 -5 -5 -5 -4 -4 -4 -4 -3 -2 -2 -2 -1 -1 --------- Run | Yrd Mat Min Mat Min Exi Min Mat Fac Was Fac Low Low Zio Pro Fac Low Low Dat Pro Fac Upp Upp Zhi Pro Fac Arm Lab Res Res Qua Sec Acc Com Distress Signals 19 | . . . 2 . . . 3 3 . 1 . . . . 1 . . . . 1 . . . . . 2 . 2 1 . 1 1 1 Communications Jammed . | . . . . . . . . . . . . . . . . . . . . . . . . . . . . . . . . . . Distress Signals . | . . . . . . . . . . . . . . . . . . . . . . . . . . . . . . . . . . Times Spotted 374 | . 17 2 44 11 . . 28 32 5 18 4 . . 1 44 3 4 4 2 6 1 . . 10 12 25 1 4 1 7 32 21 35 Peak Tracking Total 25 | . 3 1 8 5 . . 7 7 5 5 4 . . 1 7 2 3 4 2 4 1 . . 9 10 18 1 4 4 5 23 12 25 Tactical Retreats 57 | . . . 2 1 . . . 14 . 6 1 . . 1 13 1 1 . . 1 . . . 1 1 2 . 1 . 2 4 4 1 Traps | -11 -10 -10 -9 -9 -9 -8 -8 -7 -7 -7 -7 -7 -7 -6 -6 -6 -6 -6 -5 -5 -5 -5 -5 -4 -4 -4 -4 -3 -2 -2 -2 -1 -1 ------- Run | Yrd Mat Min Mat Min Exi Min Mat Fac Was Fac Low Low Zio Pro Fac Low Low Dat Pro Fac Upp Upp Zhi Pro Fac Arm Lab Res Res Qua Sec Acc Com Traps Triggered 16 | . 1 . 2 . . . 1 4 . . . . . . 1 . . . . . . . . . 1 . . 2 . . 1 2 1 Indirectly . | . . . . . . . . . . . . . . . . . . . . . . . . . . . . . . . . . . Trap Hack Attempts 29 | . . . . . . . . 11 . 1 . . . . 17 . . . . . . . . . . . . . . . . . . Triggered 1 | . . . . . . . . 1 . . . . . . . . . . . . . . . . . . . . . . . . . Disarmed 1 | . . . . . . . . 1 . . . . . . . . . . . . . . . . . . . . . . . . . Reprogrammed 18 | . . . . . . . . 10 . 1 . . . . 7 . . . . . . . . . . . . . . . . . . Reused 7 | . . . . . . . . 1 . . . . . . 6 . . . . . . . . . . . . . . . . . . Traps Extracted 9 | . . . . . . . . 5 . 1 . . . . 3 . . . . . . . . . . . . . . . . . . Installed 3 | . . . . . . . . . . . . . . . 3 . . . . . . . . . . . . . . . . . . Triggered 12 | . . . . . . . . 1 . . . 1 . 2 7 . . . . . 1 . . . . . . . . . . . . Most Traps Carried 6 | . . . . . . . . 5 5 5 3 3 3 3 6 . . . . . . . . . . . . . . . . . . Machines | -11 -10 -10 -9 -9 -9 -8 -8 -7 -7 -7 -7 -7 -7 -6 -6 -6 -6 -6 -5 -5 -5 -5 -5 -4 -4 -4 -4 -3 -2 -2 -2 -1 -1 ---------- Run | Yrd Mat Min Mat Min Exi Min Mat Fac Was Fac Low Low Zio Pro Fac Low Low Dat Pro Fac Upp Upp Zhi Pro Fac Arm Lab Res Res Qua Sec Acc Com Machines Disabled 18 | . . . 1 1 . . 1 . . . . . . . 1 . . . . . . . . . 2 1 1 . . 1 5 1 3 Max in Single Turn 2 | . . . 1 1 . . 1 . . . . . . . 1 . . . . . . . . . 1 1 1 . . 1 1 1 2 Garrison Access 11 | . . . . . . . 1 2 . 3 . . . . 3 . . . . . . . . . . . . . 1 . . 1 . Machines Repaired . | . . . . . . . . . . . . . . . . . . . . . . . . . . . . . . . . . . Machines Dismantled . | . . . . . . . . . . . . . . . . . . . . . . . . . . . . . . . . . . Machines Sabotaged . | . . . . . . . . . . . . . . . . . . . . . . . . . . . . . . . . . . Overloaded Fab Kills . | . . . . . . . . . . . . . . . . . . . . . . . . . . . . . . . . . . Hacking | -11 -10 -10 -9 -9 -9 -8 -8 -7 -7 -7 -7 -7 -7 -6 -6 -6 -6 -6 -5 -5 -5 -5 -5 -4 -4 -4 -4 -3 -2 -2 -2 -1 -1 --------- Run | Yrd Mat Min Mat Min Exi Min Mat Fac Was Fac Low Low Zio Pro Fac Low Low Dat Pro Fac Upp Upp Zhi Pro Fac Arm Lab Res Res Qua Sec Acc Com Machines Accessed 134 | . 7 . 7 . 2 . 9 24 . 24 . . . . 26 . 1 4 1 5 1 . 5 . 4 2 2 1 3 . . 5 1 Terminals 70 | . 7 . 6 . . . 6 11 . 14 . . . . 12 . . . 1 2 1 . . . 3 1 . 1 . . . 4 1 Fabricators 21 | . . . . . . . . 6 . 5 . . . . 6 . . . . 2 . . . . . 1 . . 1 . . . . Repair Stations 11 | . . . 1 . . . 1 2 . 2 . . . . 4 . . . . . . . . . 1 . . . . . . . . Recycling Units 1 | . . . . . . . . . . . . . . . 1 . . . . . . . . . . . . . . . . . . Scanalyzers 6 | . . . . . . . 1 3 . . . . . . . . . . . 1 . . . . . . . . 1 . . . . Garrison Access 11 | . . . . . . . 1 2 . 3 . . . . 3 . . . . . . . . . . . . . 1 . . 1 . Total Hacks 437 | . 16 . 17 . 2 . 36 78 . 86 . . . . 74 . 1 27 1 17 1 . 14 . 16 9 20 3 8 . . 8 3 Successful 316 | . 6 . 8 . 2 . 18 63 . 61 . . . . 61 . 1 27 1 11 1 . 14 . 5 6 20 1 5 . . 4 1 Failed 121 | . 10 . 9 . . . 18 15 . 25 . . . . 13 . . . . 6 . . . . 11 3 . 2 3 . . 4 2 Catastrophic 18 | . 6 . . . . . 3 1 . 1 . . . . 2 . . . . 1 . . . . 2 . . 1 . . . 1 . Database Lockouts . | . . . . . . . . . . . . . . . . . . . . . . . . . . . . . . . . . . Manual 192 | . 15 . 12 . 1 . 17 29 . 49 . . 4 . 29 . . . . 8 . . . . 12 8 . 3 1 . . 1 3 Terminals 211 | . 16 . 15 . . . 19 35 . 56 . . . . 31 . . . 1 6 1 . . . 12 7 . 3 . . . 6 3 Fabricators 82 | . . . . . . . . 25 . 22 . . . . 21 . . . . 9 . . . . . 2 . . 3 . . . . Repair Stations 45 | . . . 2 . . . 10 8 . 4 . . . . 17 . . . . . . . . . 4 . . . . . . . . Recycling Units 1 | . . . . . . . . . . . . . . . 1 . . . . . . . . . . . . . . . . . . Scanalyzers 18 | . . . . . . . 5 7 . . . . . . . . . . . 2 . . . . . . . . 4 . . . . Garrison Access 16 | . . . . . . . 2 3 . 4 . . . . 4 . . . . . . . . . . . . . 1 . . 2 . Terminal Hacks 146 | . 4 . 6 . 2 . 3 17 . 26 . . . . 14 . 1 27 1 2 1 . 14 . 1 3 20 1 . . . 3 . Record 39 | . . . . . 1 . . . . . . . . . . . . 11 1 . 1 . 6 . . . 19 . . . . . . Part Schematic 27 | . 3 . . . . . . 2 . 3 . . . . 3 . . 11 . . . . 4 . . 1 . . . . . . . Robot Schematic 5 | . . . . . . . . . . . . . . . . . . 5 . . . . . . . . . . . . . . . Robot Analysis 2 | . . . . . . . 1 1 . . . . . . . . . . . . . . . . . . . . . . . . . Prototype ID Bank 10 | . . . 1 . . . 1 . . 3 . . . . 1 . . . . . . . 4 . . . . . . . . . . Open Door 4 | . . . . . . . . . . . . . . . . . 1 . . . . . . . . . . . . . . 3 . Level Access Points 1 | . . . . . . . . . . . . . . . . . . . . . . . . . . . . 1 . . . . . Branch Access Points 5 | . . . 1 . . . . . . 1 . . . . 1 . . . . 1 . . . . 1 . . . . . . . . Emergency Access Points 2 | . . . . . . . . . . 1 . . . . 1 . . . . . . . . . . . . . . . . . . Machine Index 3 | . . . . . . . . 1 . 1 . . . . 1 . . . . . . . . . . . . . . . . . . Terminal Index 2 | . . . . . . . . 1 . 1 . . . . . . . . . . . . . . . . . . . . . . . Repair Station Index 1 | . . . . . . . . 1 . . . . . . . . . . . . . . . . . . . . . . . . . Alert Level 3 | . . . . . . . . 1 . 2 . . . . . . . . . . . . . . . . . . . . . . . Unreport Threat 4 | . . . 1 . . . . 1 . 1 . . . . 1 . . . . . . . . . . . . . . . . . . Locate Traps 10 | . . . 1 . . . . 3 . 4 . . . . 1 . . . . . . . . . . 1 . . . . . . . Reprogram Traps 2 | . . . . . . . . 2 . . . . . . . . . . . . . . . . . . . . . . . . . Patrol Status 1 | . . . . . . . . . . 1 . . . . . . . . . . . . . . . . . . . . . . . Recall Extermination 2 | . . . . . . . . . . 1 . . . . 1 . . . . . . . . . . . . . . . . . . Hauler Manifests 7 | . 1 . 1 . . . 1 1 . 2 . . . . 1 . . . . . . . . . . . . . . . . . . Registered Components 1 | . . . . . . . . . . 1 . . . . . . . . . . . . . . . . . . . . . . . Registered Prototypes 1 | . . . . . . . . . . 1 . . . . . . . . . . . . . . . . . . . . . . . Zone Layout 12 | . . . 1 . . . . 3 . 3 . . . . 3 . . . . 1 . . . . . 1 . . . . . . . Derelict Proto ID Bank 1 | . . . . . 1 . . . . . . . . . . . . . . . . . . . . . . . . . . . . Release Object 1 | . . . . . . . . . . . . . . . . . . . . . . . . . . . 1 . . . . . . Fabricator Hacks 55 | . . . . . . . . 17 . 15 . . . . 15 . . . . 5 . . . . . 1 . . 2 . . . . Network Status 5 | . . . . . . . . 1 . 1 . . . . 2 . . . . 1 . . . . . . . . . . . . . Load Schematic 34 | . . . . . . . . 11 . 9 . . . . 9 . . . . 3 . . . . . 1 . . 1 . . . . Build 16 | . . . . . . . . 5 . 5 . . . . 4 . . . . 1 . . . . . . . . 1 . . . . Repair Station Hacks 41 | . . . 1 . . . 8 8 . 3 . . . . 17 . . . . . . . . . 4 . . . . . . . . Scan Component 21 | . . . 1 . . . 4 4 . 1 . . . . 9 . . . . . . . . . 2 . . . . . . . . Repair 19 | . . . . . . . 4 4 . 1 . . . . 8 . . . . . . . . . 2 . . . . . . . . Refit 1 | . . . . . . . . . . 1 . . . . . . . . . . . . . . . . . . . . . . . Recycling Unit Hacks . | . . . . . . . . . . . . . . . . . . . . . . . . . . . . . . . . . . Scanalyzer 13 | . . . . . . . 4 5 . . . . . . . . . . . 2 . . . . . . . . 2 . . . . Insert Component 8 | . . . . . . . 2 3 . . . . . . . . . . . 1 . . . . . . . . 2 . . . . Analyze 5 | . . . . . . . 2 2 . . . . . . . . . . . 1 . . . . . . . . . . . . . Garrison Access Hacks 11 | . . . . . . . 1 2 . 3 . . . . 3 . . . . . . . . . . . . . 1 . . 1 . Seal Access 11 | . . . . . . . 1 2 . 3 . . . . 3 . . . . . . . . . . . . . 1 . . 1 . Unauthorized Hacks 50 | . 2 . 1 . . . 2 14 . 14 . . . . 12 . . . . 2 . . . . . 2 . . . . . . 1 Terminals 27 | . 2 . 1 . . . 2 6 . 8 . . . . 6 . . . . . . . . . . 1 . . . . . . 1 Track 1 | . . . . . . . . . . . . . . . . . . . . . . . . . . 1 . . . . . . . Assimilate 11 | . 1 . . . . . 1 2 . 4 . . . . 2 . . . . . . . . . . . . . . . . . 1 Botnet 8 | . . . . . . . 1 3 . 3 . . . . 1 . . . . . . . . . . . . . . . . . . Operators 7 | . 1 . 1 . . . . 1 . 1 . . . . 3 . . . . . . . . . . . . . . . . . . Fabricators 22 | . . . . . . . . 8 . 6 . . . . 5 . . . . 2 . . . . . 1 . . . . . . . Prioritize 6 | . . . . . . . . 2 . 2 . . . . 1 . . . . 1 . . . . . . . . . . . . . Recompile 16 | . . . . . . . . 6 . 4 . . . . 4 . . . . 1 . . . . . 1 . . . . . . . Repair Stations . | . . . . . . . . . . . . . . . . . . . . . . . . . . . . . . . . . . Recycling Units 1 | . . . . . . . . . . . . . . . 1 . . . . . . . . . . . . . . . . . . Mask 1 | . . . . . . . . . . . . . . . 1 . . . . . . . . . . . . . . . . . . Scanalyzers . | . . . . . . . . . . . . . . . . . . . . . . . . . . . . . . . . . . Garrison Access . | . . . . . . . . . . . . . . . . . . . . . . . . . . . . . . . . . . Data Cores Recovered 1 | . . . . . . . . 1 . . . . . . . . . . . . . . . . . . . . . . . . . Used . | . . . . . . . . . . . . . . . . . . . . . . . . . . . . . . . . . . Hacking Detections 85 | . 7 . 7 . . . 8 16 . 18 . . . . 18 . . . . 2 . . . . 3 1 . . 2 . . 2 1 Full Trace Events 4 | . . . . . . . . . . 2 . . . . 1 . . . . 1 . . . . . . . . . . . . . Feedback Events 1 | . . . . . . . . . . . . . . . 1 . . . . . . . . . . . . . . . . . . Corruption 1 | . . . . . . . . . . . . . . . 1 . . . . . . . . . . . . . . . . . . Feedback Blocked . | . . . . . . . . . . . . . . . . . . . . . . . . . . . . . . . . . . Robot Schematics Acquired 9 | . . . . . . . . . . . . . 4 . . . . 5 . . . . . . . . . . . . . . . Robots Built . | . . . . . . . . . . . . . . . . . . . . . . . . . . . . . . . . . . Authchips . | . . . . . . . . . . . . . . . . . . . . . . . . . . . . . . . . . . Time . | . . . . . . . . . . . . . . . . . . . . . . . . . . . . . . . . . . Total Robot Build Rating . | . . . . . . . . . . . . . . . . . . . . . . . . . . . . . . . . . . Part Schematics Acquired 45 | . 3 . . . . . 2 4 . 2 . . 14 . 3 . . 11 . 1 . . 4 . . 1 . . . . . . . Parts Built 17 | . . . . . . . . 6 . 5 . . . . 4 . . . . 1 . . . . . . . . 1 . . . . Authchips 16 | . . . . . . . . 5 . 5 . . . . 4 . . . . 1 . . . . . . . . 1 . . . . Time 1050 | . . . . . . . . 419 . 270 . . . . 237 . . . . 62 . . . . . . . . 62 . . . . Total Part Build Rating 86 | . . . . . . . . 24 . 28 . . . . 20 . . . . 7 . . . . . . . . 7 . . . . Parts Repaired 19 | . . . . . . . 4 4 . 1 . . . . 8 . . . . . . . . . 2 . . . . . . . . Time 796 | . . . . . . . 168 166 . 22 . . . . 361 . . . . . . . . . 79 . . . . . . . . Parts Recycled . | . . . . . . . . . . . . . . . . . . . . . . . . . . . . . . . . . . Recycled Matter . | . . . . . . . . . . . . . . . . . . . . . . . . . . . . . . . . . . Retrieved Matter . | . . . . . . . . . . . . . . . . . . . . . . . . . . . . . . . . . . Retrieved Components . | . . . . . . . . . . . . . . . . . . . . . . . . . . . . . . . . . . Parts Scanalyzed 6 | . . . . . . . 2 3 . . . . . . . . . . . 1 . . . . . . . . . . . . . Part Schematics Acquired 5 | . . . . . . . 2 2 . . . . . . . . . . . 1 . . . . . . . . . . . . . Parts Damaged 2 | . . . . . . . . 2 . . . . . . . . . . . . . . . . . . . . . . . . . Bothacking | -11 -10 -10 -9 -9 -9 -8 -8 -7 -7 -7 -7 -7 -7 -6 -6 -6 -6 -6 -5 -5 -5 -5 -5 -4 -4 -4 -4 -3 -2 -2 -2 -1 -1 ------------ Run | Yrd Mat Min Mat Min Exi Min Mat Fac Was Fac Low Low Zio Pro Fac Low Low Dat Pro Fac Upp Upp Zhi Pro Fac Arm Lab Res Res Qua Sec Acc Com Used RIF Installer . | . . . . . . . . . . . . . . . . . . . . . . . . . . . . . . . . . . Robots Hacked 8 | . . . . . 3 . 1 2 . . . . . . 1 . . . . . . . . . . . 1 . . . . . . Non-combat 5 | . . . . . 2 . . 2 . . . . . . 1 . . . . . . . . . . . . . . . . . . Combat 2 | . . . . . 1 . 1 . . . . . . . . . . . . . . . . . . . . . . . . . . Robot Hacks Applied 7 | . . . . . 3 . 1 2 . . . . . . 1 . . . . . . . . . . . . . . . . . . parse_system 4 | . . . . . 3 . 1 . . . . . . . . . . . . . . . . . . . . . . . . . . no_distress 1 | . . . . . . . . . . . . . . . 1 . . . . . . . . . . . . . . . . . . find_chute 2 | . . . . . . . . 2 . . . . . . . . . . . . . . . . . . . . . . . . . Manual 1 | . . . . . . . . . . . . . . . . . . . . . . . . . . . 1 . . . . . . Relay Couplers Released . | . . . . . . . . . . . . . . . . . . . . . . . . . . . . . . . . . . Fabnet Peak Effective % . | . . . . . . . . . . . . . . . . . . . . . . . . . . . . . . . . . . Robots Rewired 4 | . . . . . . . . . . . . . . . . . . . . . . . . . . 4 . . . . . . . Allies Hacked . | . . . . . . . . . . . . . . . . . . . . . . . . . . . . . . . . . . Hacks Repelled . | . . . . . . . . . . . . . . . . . . . . . . . . . . . . . . . . . . Allies | -11 -10 -10 -9 -9 -9 -8 -8 -7 -7 -7 -7 -7 -7 -6 -6 -6 -6 -6 -5 -5 -5 -5 -5 -4 -4 -4 -4 -3 -2 -2 -2 -1 -1 -------- Run | Yrd Mat Min Mat Min Exi Min Mat Fac Was Fac Low Low Zio Pro Fac Low Low Dat Pro Fac Upp Upp Zhi Pro Fac Arm Lab Res Res Qua Sec Acc Com Total Allies 16 | . 1 . . 3 . . 1 2 . 2 . . . . 2 . . . . . . . . . . 4 . . . . . . 1 Largest Group 4 | . 1 . . 3 . . 1 1 . 2 . . . . 1 . . . . . . . . . . 4 . . . . . . 1 Highest-Rated Group 192 | . 10 . . 40 . . 26 26 . 36 . . . . 26 . . . . . . . . . . 192 . . . . . . 45 Highest-Rated Ally 48 | . 10 . . 16 . . 26 26 . 26 . . . . 26 . . . . . . . . . . 48 . . . . . . 45 Total Orders 1 | . . . . . . . . 1 . . . . . . . . . . . . . . . . . . . . . . . . . STAY 1 | . . . . . . . . 1 . . . . . . . . . . . . . . . . . . . . . . . . . Ally Attacks 30 | . . . . 8 . . . . . . . . . . . . . . . . . . . . . 22 . . . . . . . Total Damage 827 | . . . . 98 . . . . . . . . . . . . . . . . . . . . . 729 . . . . . . . Kills 5 | . . . . 3 . . . . . . . . . . . . . . . . . . . . . 2 . . . . . . . Allies Corrupted . | . . . . . . . . . . . . . . . . . . . . . . . . . . . . . . . . . . Allies Melted . | . . . . . . . . . . . . . . . . . . . . . . . . . . . . . . . . . . Intel | -11 -10 -10 -9 -9 -9 -8 -8 -7 -7 -7 -7 -7 -7 -6 -6 -6 -6 -6 -5 -5 -5 -5 -5 -4 -4 -4 -4 -3 -2 -2 -2 -1 -1 ------- Run | Yrd Mat Min Mat Min Exi Min Mat Fac Was Fac Low Low Zio Pro Fac Low Low Dat Pro Fac Upp Upp Zhi Pro Fac Arm Lab Res Res Qua Sec Acc Com Robot Analysis Total 136 | . . . . . . . 1 1 . . . . . . . . . 134 . . . . . . . . . . . . . . . Derelict Logs Recovered 14 | . . 1 . 2 . . . . . . 1 1 . 2 . . 1 . 1 . 2 2 . 1 . . . . . . . . . Drone Launches . | . . . . . . . . . . . . . . . . . . . . . . . . . . . . . . . . . . Drone Recoveries . | . . . . . . . . . . . . . . . . . . . . . . . . . . . . . . . . . . Exploration | -11 -10 -10 -9 -9 -9 -8 -8 -7 -7 -7 -7 -7 -7 -6 -6 -6 -6 -6 -5 -5 -5 -5 -5 -4 -4 -4 -4 -3 -2 -2 -2 -1 -1 ------------- Run | Yrd Mat Min Mat Min Exi Min Mat Fac Was Fac Low Low Zio Pro Fac Low Low Dat Pro Fac Upp Upp Zhi Pro Fac Arm Lab Res Res Qua Sec Acc Com Turns Passed 16802 | 82 1742 177 1896 1170 1144 219 2120 1630 78 1260 144 80 372 129 1993 111 108 104 128 114 86 57 57 145 271 186 193 118 372 68 127 145 176 Spaces Moved 20882 | 41 957 96 642 478 505 98 677 2967 172 2416 432 262 1030 466 3943 483 389 147 401 249 361 239 176 358 227 375 300 215 271 246 475 441 347 Core 12 | 5 . . . . . . . 6 . . . . . . . . . . . . . . . . . . . . . . . . 1 Treads 3489 | 36 957 96 642 478 505 98 677 . . . . . . . . . . . . . . . . . . . . . . . . . . Legs . | . . . . . . . . . . . . . . . . . . . . . . . . . . . . . . . . . . Wheels . | . . . . . . . . . . . . . . . . . . . . . . . . . . . . . . . . . . Hover . | . . . . . . . . . . . . . . . . . . . . . . . . . . . . . . . . . . Flight 17381 | . . . . . . . . 2961 172 2416 432 262 1030 466 3943 483 389 147 401 249 361 239 176 358 227 375 300 215 271 246 475 441 346 Fastest Speed 7 | 50 160 160 160 225 225 225 228 26 26 26 26 26 26 26 12 15 21 12 21 17 17 17 17 7 7 7 14 9 10 7 10 14 14 Average Speed 53 | 146 160 160 229 225 225 225 231 29 26 26 26 26 26 26 24 20 21 19 21 17 17 17 17 16 13 13 19 16 10 9 12 14 16 Slowest Speed 320 | 160 160 160 320 225 225 225 235 250 26 26 26 26 26 26 92 21 21 21 21 17 17 17 17 17 17 14 87 93 10 10 14 14 200 Overloaded Moves 132 | . . . . . . . . . . . . . . . 36 2 . 25 . . . . . 17 5 22 . 12 . 13 . . . Propulsion Burnouts . | . . . . . . . . . . . . . . . . . . . . . . . . . . . . . . . . . . Robots Hopped 72 | . . . . . . . . 17 . 10 . . . . 22 2 . . 1 . . . . 2 2 . . 1 . . 5 9 1 Cave-ins Triggered 1 | . . . . . . . . . . . . . . . . . . . . . . . . . . . . . . . . . 1 Exploration Rate (%) 50 | 5 97 21 56 84 91 25 53 61 91 53 59 48 86 74 72 64 52 80 44 10 64 39 62 54 11 47 99 10 7 34 37 19 16 Regions Visited 33 Branch Regions 21 Pre-discovered Areas 31 | . . . . 1 1 . . . . . . 1 1 . . . . 24 . . . . 3 . . . . . . . . . . Known Exits Taken 12 | . . 1 1 . . 1 . . . 1 . . . . 1 . . . 1 1 1 . . 1 1 . 1 1 . . . . . Unknown Exits Taken 19 | 1 1 . . 1 1 . 1 . . . 1 1 1 1 . 1 1 1 . . . 1 1 . . 1 . . 1 1 1 1 . Scrap Searched 14 | . . . . 1 . . . . . . . . 3 1 . . 1 . 4 . 2 2 . . . . . . . . . . . Spaces Dug 752 | . . . . . . . . 45 . 38 . . . 2 105 1 18 6 1 6 1 1 . 15 10 17 1 13 25 3 13 21 410 Terrain Destroyed 2211 | . . . . . . . . 45 . 38 63 . . 2 160 1 62 6 1 6 1 1 . 15 10 17 1 13 25 3 13 21 1707 Melee 282 | . . . . . . . . 45 . 38 . . . 2 80 1 . 6 1 6 1 1 . 15 8 15 1 13 10 3 13 21 2 Projectile 1724 | . . . . . . . . . . . . . . . . . . . . . . . . . 2 2 . . 15 . . . 1705 AOE 205 | . . . . . . . . . . . 63 . . . 80 . 62 . . . . . . . . . . . . . . . . Terrain Rammed . | . . . . . . . . . . . . . . . . . . . . . . . . . . . . . . . . . . Walls Destroyed . | . . . . . . . . . . . . . . . . . . . . . . . . . . . . . . . . . . Machines Disabled . | . . . . . . . . . . . . . . . . . . . . . . . . . . . . . . . . . . Actions | -11 -10 -10 -9 -9 -9 -8 -8 -7 -7 -7 -7 -7 -7 -6 -6 -6 -6 -6 -5 -5 -5 -5 -5 -4 -4 -4 -4 -3 -2 -2 -2 -1 -1 --------- Run | Yrd Mat Min Mat Min Exi Min Mat Fac Was Fac Low Low Zio Pro Fac Low Low Dat Pro Fac Upp Upp Zhi Pro Fac Arm Lab Res Res Qua Sec Acc Com Total 25042 | 54 1075 107 894 543 512 97 1131 3618 205 2944 444 266 1132 471 4693 487 407 185 443 305 378 250 190 406 431 475 422 256 569 283 501 464 404 Wait 2757 | . 28 . 42 34 . . 333 458 30 417 . . 88 1 516 6 12 16 31 41 15 10 . 29 183 63 89 3 255 28 6 4 19 Move 20706 | 40 956 95 641 477 504 97 676 2934 171 2395 431 261 1029 465 3898 478 388 146 398 248 360 238 175 353 222 374 299 212 270 245 464 422 344 Hop 71 | . . . . . . . . 16 . 10 . . . . 22 2 . . 1 . . . . 2 2 . . 1 . . 5 9 1 Pick Up 165 | 4 14 3 35 3 1 . 10 29 . 13 . . 2 . 22 . . 2 3 2 . . 3 . 1 4 4 4 4 . 1 1 . Fast Attach 107 | 6 6 . 6 . . . 11 13 1 12 . . 2 . 16 . . 1 . . . . 1 . 2 2 8 7 . 1 2 3 7 Attach 105 | . . . 5 . . . 3 33 1 7 1 . 1 1 20 . 2 1 4 5 . . 1 1 1 2 1 2 3 . 2 1 7 Detach 69 | . 1 . 4 . . . 2 19 1 8 1 . 3 1 11 . 1 1 3 1 . . 1 1 . . 3 . . 3 . . 4 Swap 85 | . 5 . 20 . 2 . 3 11 . 9 1 1 1 . 14 . . . . 1 . . 2 3 4 2 . 2 4 . . . . Drop 148 | . 8 1 34 3 1 . 11 22 1 11 . . 4 1 13 . . . 2 . . . 1 . . 4 9 6 2 2 3 . 9 Fire 302 | 4 54 7 95 24 . . 77 . . . 4 . . . 5 . 3 . . . . . . . 2 2 . . 18 . . . 7 Melee 471 | . . . . . 3 . 1 72 . 61 6 4 2 2 136 1 1 18 1 7 3 2 6 17 14 22 9 19 13 4 18 24 5 Ram . | . . . . . . . . . . . . . . . . . . . . . . . . . . . . . . . . . . Kick . | . . . . . . . . . . . . . . . . . . . . . . . . . . . . . . . . . . Crush 22 | . 3 1 12 2 . . 4 . . . . . . . . . . . . . . . . . . . . . . . . . . Escape Stasis 1 | . . . . . . . . . . . . . . . . . . . . . . . . . . . . . . . . . 1 Rewire 1 | . . . . . 1 . . . . . . . . . . . . . . . . . . . . . . . . . . . . Trap 32 | . . . . . . . . 11 . 1 . . . . 20 . . . . . . . . . . . . . . . . . . Miscellaneous . | . . . . . . . . . . . . . . . . . . . . . . . . . . . . . . . . . . Route ------- -11/Scrapyard -10/Materials (discovered 5 exits: *Mat x3 / [*Min] / *Sub) -10/Mines -9/Materials (discovered 4 exits: *Mat x2 / *Min / *Sto) -9/Mines (discovered 3 exits: *Mat x2 / *Exi) -9/Exiles -8/Mines -8/Materials (discovered 2 exits: *Fac x2) -7/Factory (discovered 2 exits: *Fac / *Low) -7/Waste -7/Factory (discovered 4 exits: *Fac x2 / *Low x2) -7/Lower Caves -7/Lower Caves (discovered 2 exits: *Fac / *Zio) -7/Zion (discovered 2 exits: [*Dee] / [*Pro]) -6/Proximity Caves -6/Factory (discovered 5 exits: *Fac x3 / *Low x2) -6/Lower Caves -6/Lower Caves (discovered 2 exits: *Fac / *Dat) -6/Data Miner -5/Proximity Caves -5/Factory (discovered 2 exits: *Upp x2) -5/Upper Caves -5/Upper Caves (discovered 2 exits: Fac / *Zhi) -5/Zhirov -4/Proximity Caves -4/Factory (discovered 6 exits: Res / Upp x2 / Ext x2 / *Arm) -4/Armory -4/Lab -3/Research (discovered 3 exits: *Res x3) -2/Research -2/Quarantine -2/Section 7 -1/Access -1/Command History --------- Turn | Location | Event 13 | -11/Scrapyard | Discovered new exit (range 16) 83 | -11/Scrapyard | Entered Materials 273 | -10/Materials | Discovered new exit (range 16) 303 | -10/Materials | Build established: Mutant 547 | -10/Materials | Discovered new exit (range 16) 770 | -10/Materials | Discovered new exit (range 9) 1363 | -10/Materials | Discovered new exit (range 8) 1674 | -10/Materials | Discovered new exit (range 13) 1695 | -10/Materials | Identified exit to Materials 1715 | -10/Materials | Identified exit to Subcaves 1825 | -10/Materials | Entered Mines 1920 | -10/Mines | Learned 4 Materials zone layouts 1988 | -10/Mines | Discovered exit to Materials (range 9) 2002 | -10/Mines | Entered Materials 2002 | -9/Materials | Evolved 2 slots: Propulsion x1, Utility x1 2003 | -9/Materials | Identified exit to Materials 2068 | -9/Materials | Identified exit to Mines 2068 | -9/Materials | Identified exit to Storage 2578 | -9/Materials | Discovered exit to Materials (range 9) 3898 | -9/Materials | Entered Mines 4068 | -9/Mines | Discovered exit to Materials (range 12) 4093 | -9/Mines | Learned location of Storage (-9) 4183 | -9/Mines | Assisted by bots powering up and referring to "LRC-V3" 4503 | -9/Mines | Assembled infested the area 4514 | -9/Mines | Learned Materials emergency access door positions 4649 | -9/Mines | Core integrity fell below 50% 4738 | -9/Mines | Discovered exit to Materials (range 7) 5056 | -9/Mines | Deemed a non-threat by the Exiles lab entrance 5059 | -9/Mines | Discovered new exit (range 5) 5068 | -9/Mines | Entered Exiles 5125 | -9/Exiles | Met 8R-AWN 5161 | -9/Exiles | Met EX-HEX 5297 | -9/Exiles | Met EX-DEC 5310 | -9/Exiles | Learned location of Zion (-7) 5465 | -9/Exiles | Met EX-BIN 5494 | -9/Exiles | Aligned with FarCom system 5496 | -9/Exiles | Given EX-Vault access code 5550 | -9/Exiles | Opened EX-Vault 5568 | -9/Exiles | Found Field Lobotomy Kit 5616 | -9/Exiles | Warned to stay clear of 0b10 Research branches 5795 | -9/Exiles | Visited The Gauntlet 6188 | -9/Exiles | Discovered new exit (range 14) 6212 | -9/Exiles | Left Exiles lab with Field Lobotomy Kit 6212 | -9/Exiles | Entered Mines 6417 | -8/Mines | Discovered exit to Materials (range 6) 6431 | -8/Mines | Entered Materials 6431 | -8/Materials | Evolved 2 slots: Propulsion x1, Utility x1 6849 | -8/Materials | Repaired Enh. Autogun 6889 | -8/Materials | Repaired Adv. Treads 6922 | -8/Materials | Repaired Imp. Treads 6962 | -8/Materials | Repaired Adv. Treads 7643 | -8/Materials | Discovered new exit (range 3) 8350 | -8/Materials | Discovered new exit (range 13) 8551 | -8/Materials | Entered Factory 8551 | -7/Factory | Evolved 2 slots: Utility x2 8795 | -7/Factory | Repaired Broken Imp. Flight Unit? 9137 | -7/Factory | Garrison activated, responded to threat 9201 | -7/Factory | Build established: Hacker-Sprinter 9285 | -7/Factory | Discovered new exit (range 8) 9335 | -7/Factory | Fabricated Imp. Trap Extractor? 9430 | -7/Factory | Discovered new exit (range 6) 9499 | -7/Factory | Found Prototype Launcher 9499 | -7/Factory | Identified Rocket Array 9567 | -7/Factory | Repaired Katana 9592 | -7/Factory | Fabricated Cld. VTOL Module? 9824 | -7/Factory | Fabricated Cld. VTOL Module (x1) 9968 | -7/Factory | Repaired Katana 9977 | -7/Factory | Fabricated Cld. VTOL Module? 9995 | -7/Factory | Repaired Datajack? 10052 | -7/Factory | Fabricated Cld. VTOL Module (x1) 10181 | -7/Factory | Manually triggered Chute Trap 10181 | -7/Factory | Sucked down chute 10181 | -7/Factory | Entered Waste 10186 | -7/Waste | Spotted C-40 Crusher 10187 | -7/Waste | Spotted C-40 Crusher 10187 | -7/Waste | Spotted C-40 Crusher 10195 | -7/Waste | Spotted C-40 Crusher 10196 | -7/Waste | EMP discharged 10199 | -7/Waste | Spotted C-40 Crusher 10200 | -7/Waste | Discovered new exit (range 12) 10200 | -7/Waste | Spotted C-40 Crusher 10259 | -7/Waste | Entered Factory 10362 | -7/Factory | Discovered new exit (range 12) 10449 | -7/Factory | Discovered new exit (range 16) 10628 | -7/Factory | Identified exit to Lower Caves 10744 | -7/Factory | Fabricated Imp. Hacking Suite (x1) 10792 | -7/Factory | Fabricated Imp. Hacking Suite (x1) 10910 | -7/Factory | Found Rocket Array 10948 | -7/Factory | Fabricated Adv. Hacking Suite (x1) 11067 | -7/Factory | Fabricated Adv. Hacking Suite? 11162 | -7/Factory | Fabricated Adv. Hacking Suite (x1) 11207 | -7/Factory | Repaired Spear 11519 | -7/Factory | Entered Lower Caves 11534 | -7/Lower Caves | Learned Factory emergency access door positions 11589 | -7/Lower Caves | Spotted B-75 Beast 11593 | -7/Lower Caves | Encountered a Warlord checkpoint 11654 | -7/Lower Caves | Discovered new exit (range 15) 11663 | -7/Lower Caves | Entered another Lower Caves area 11674 | -7/Lower Caves | Discovered new exit (range 7) 11737 | -7/Lower Caves | Discovered new exit (range 12) 11743 | -7/Lower Caves | Entered Zion 11749 | -7/Zion | Found Prototype Device 11778 | -7/Zion | Acquired unknown access codes intercepted by a Zionite 11781 | -7/Zion | Discovered new exit (range 10) 11814 | -7/Zion | Identified Bomb Factory No. 2 11846 | -7/Zion | System corruption cleaned by Quarantine Array 11858 | -7/Zion | Learned location of Warlord (-4) 11899 | -7/Zion | Opened final containment barrier to the Deep Caves 11903 | -7/Zion | Discovered new exit (range 3) 11903 | -7/Zion | Saw the warning signs outside the Deep Caves entrance 11968 | -7/Zion | Given A8's code to call for help 12051 | -7/Zion | Rebuked by Imprinter 12115 | -7/Zion | Entered Proximity Caves 12219 | -6/Proximity Caves | Spotted B-75 Beast 12232 | -6/Proximity Caves | Discovered new exit (range 16) 12235 | -6/Proximity Caves | Learned Factory security intel 12243 | -6/Proximity Caves | Learned 12 Factory zone layouts 12244 | -6/Proximity Caves | Entered Factory 12244 | -6/Factory | Evolved 2 slots: Propulsion x1, Utility x1 12245 | -6/Factory | Identified exit to Factory 12245 | -6/Factory | Identified exit to Lower Caves 12346 | -6/Factory | Repaired Imp. Datajack? 12461 | -6/Factory | Repaired Med. Storage Unit 12923 | -6/Factory | Repaired Cld. VTOL Module 13093 | -6/Factory | Discovered exit to Factory (range 13) 13201 | -6/Factory | Fabricated Shock Maul? 13241 | -6/Factory | Spotted B-75 Beast 13317 | -6/Factory | Discovered exit to Factory (range 5) 13354 | -6/Factory | Fabricated Stasis Canceller? 13399 | -6/Factory | Repaired Cld. VTOL Module 13425 | -6/Factory | Repaired Lgt. Fission Core 13688 | -6/Factory | Cargo convoy interrupted 13763 | -6/Factory | Repaired Imp. VTOL Module? 13861 | -6/Factory | Found Prototype Launcher 13861 | -6/Factory | Identified Tactical Quantum Warhead 13875 | -6/Factory | Repaired Cld. VTOL Module? 13977 | -6/Factory | Repaired Lgt. Fission Core 14168 | -6/Factory | Fabricated Exp. Utility Shielding? 14219 | -6/Factory | Fabricated Exp. Utility Shielding (x1) 14237 | -6/Factory | Entered Lower Caves 14287 | -6/Lower Caves | Attacked by a delusional Derelict stockpiling Unaware 14346 | -6/Lower Caves | Discovered new exit (range 5) 14348 | -6/Lower Caves | Entered another Lower Caves area 14380 | -6/Lower Caves | Discovered exit to Factory (range 15) 14395 | -6/Lower Caves | Attracted the attention of an 0b10 checkpoint 14455 | -6/Lower Caves | Discovered new exit (range 7) 14456 | -6/Lower Caves | Entered Data Miner 14456 | -6/Data Miner | Discovered new exit (range 6) 14461 | -6/Data Miner | Met Data Miner 14482 | -6/Data Miner | Learned location of Section 7 (-2) 14482 | -6/Data Miner | Acquired the access code to Warlord's prototype stash 14485 | -6/Data Miner | Received God Mode back door access code from Data Miner 14514 | -6/Data Miner | Destroyed Data Miner 14517 | -6/Data Miner | Found Prototype Hackware 14517 | -6/Data Miner | Identified Ghost Barrier 14519 | -6/Data Miner | Found Prototype Hackware 14520 | -6/Data Miner | Found Prototype Hackware 14521 | -6/Data Miner | Interfaced with the Data Conduit 14560 | -6/Data Miner | Entered Proximity Caves 14565 | -5/Proximity Caves | Identified Quantum Router 14567 | -5/Proximity Caves | Identified Deep Network Scanner 14638 | -5/Proximity Caves | Core integrity fell below 50% 14680 | -5/Proximity Caves | Learned Factory non-interactive machine intel 14687 | -5/Proximity Caves | Discovered exit to Factory (range 6) 14688 | -5/Proximity Caves | Entered Factory 14688 | -5/Factory | Evolved 2 slots: Propulsion x1, Utility x1 14689 | -5/Factory | Loaded intel: 296 machine locations 14690 | -5/Factory | Loaded intel: 244 non-interactive machine locations 14700 | -5/Factory | Identified exit to Upper Caves 14751 | -5/Factory | Fabricated Diametric Drive? 14802 | -5/Factory | Entered Upper Caves 14803 | -5/Upper Caves | Encountered a Warlord checkpoint 14862 | -5/Upper Caves | Attracted the attention of an 0b10 checkpoint 14883 | -5/Upper Caves | Identified exit to Upper Caves 14888 | -5/Upper Caves | Entered another Upper Caves area 14929 | -5/Upper Caves | Learned location of 1 exit from Factory 14943 | -5/Upper Caves | Identified exit to Factory 14944 | -5/Upper Caves | Discovered new exit (range 9) 14945 | -5/Upper Caves | Entered Zhirov 14945 | -5/Zhirov | Discovered new exit (range 3) 14949 | -5/Zhirov | Met Zhirov 14955 | -5/Zhirov | Zhirov requested help retrieving the SGEMP Prototype 14958 | -5/Zhirov | Found Alien Artifact 14958 | -5/Zhirov | Identified Integrated Reactor 14958 | -5/Zhirov | Installed Integrated Reactor, increased core energy generation (+10) 14963 | -5/Zhirov | Found Alien Artifact 15002 | -5/Zhirov | Entered Proximity Caves 15053 | -4/Proximity Caves | Learned 12 Research zone layouts 15146 | -4/Proximity Caves | Discovered exit to Factory (range 11) 15147 | -4/Proximity Caves | Entered Factory 15147 | -4/Factory | Evolved 2 slots: Propulsion x1, Utility x1 15148 | -4/Factory | Identified exit to Research 15149 | -4/Factory | Loaded intel: 269 machine locations 15153 | -4/Factory | Identified exit to Upper Caves 15153 | -4/Factory | Identified exit to Extension 15153 | -4/Factory | Identified exit to Armory 15171 | -4/Factory | Build established: Wizard-Sprinter 15293 | -4/Factory | Repaired Cld. VTOL Module 15338 | -4/Factory | Repaired Enh. Fission Core? 15418 | -4/Factory | Entered Armory 15419 | -4/Armory | Loaded intel: 82 machine locations 15560 | -4/Armory | Spotted B-86 Titan 15601 | -4/Armory | Discovered new exit (range 3) 15604 | -4/Armory | Entered Lab 15604 | -4/Lab | Discovered exit to Research (range 10) 15607 | -4/Lab | Hidden lab's door opened automatically 15607 | -4/Lab | Sensor layout match revealed 15608 | -4/Lab | Gained access to the hidden lab's interior 15642 | -4/Lab | Found Prototype Special Weapon 15643 | -4/Lab | Detected by scanners 15698 | -4/Lab | Confronted by A5 15700 | -4/Lab | Destroyed A5 with code downloaded from Data Conduit 15706 | -4/Lab | Decrypted terminal 15706 | -4/Lab | Acquired modification code for an L2 power cell 15729 | -4/Lab | Found Alien Artifact 15731 | -4/Lab | Found Alien Artifact 15731 | -4/Lab | Identified Integrated Dissipator 15731 | -4/Lab | Installed Integrated Dissipator, increased core heat dissipation (+20) 15733 | -4/Lab | Found Alien Artifact 15733 | -4/Lab | Identified Core Regenerator 15733 | -4/Lab | Used Core Regenerator, restored core integrity (+101) 15740 | -4/Lab | Found Quantum Router 15744 | -4/Lab | Found Prototype Energy Gun 15744 | -4/Lab | Identified Tachyon Dispersion Ray 15776 | -4/Lab | Decrypted terminal 15776 | -4/Lab | Found Alien Artifact 15776 | -4/Lab | Identified LC Capacitor 15797 | -4/Lab | Entered Research 15797 | -3/Research | Evolved 2 slots: Power x1, Propulsion x1 15799 | -3/Research | Loaded intel: 80 machine locations 15801 | -3/Research | Identified exit to Research 15915 | -3/Research | Entered another Research area 15915 | -2/Research | Evolved 2 slots: Propulsion x1, Utility x1 15916 | -2/Research | Loaded intel: 118 machine locations 15926 | -2/Research | Identified Transdimensional Reconstructor (x2) 15926 | -2/Research | Identified Gui. Remote Datajack 16004 | -2/Research | Fabricated Gravity Flail (x1) 16261 | -2/Research | Found Gui. Micro-nuke Launcher 16279 | -2/Research | Discovered new exit (range 6) 16287 | -2/Research | Entered Quarantine 16288 | -2/Quarantine | Maximum security lockdown engaged 16288 | -2/Quarantine | Loaded intel: 82 machine locations 16296 | -2/Quarantine | Found Alien Slashing Weapon 16296 | -2/Quarantine | Identified Sigix Broadsword 16302 | -2/Quarantine | Scanned by Researcher 16328 | -2/Quarantine | Spotted Fortress 16338 | -2/Quarantine | Discovered new exit (range 5) 16355 | -2/Quarantine | Entered Section 7 16356 | -2/Section 7 | Maximum security lockdown engaged 16356 | -2/Section 7 | Loaded intel: 156 machine locations 16377 | -2/Section 7 | Found Integrated Dissipator 16377 | -2/Section 7 | Installed Integrated Dissipator, increased core heat dissipation (+20) 16395 | -2/Section 7 | Spotted Executioner 16396 | -2/Section 7 | Spotted Executioner 16400 | -2/Section 7 | Scanned by Researcher 16410 | -2/Section 7 | Found Alien Energy Cannon 16411 | -2/Section 7 | Installed L-Cannon capacitor 16473 | -2/Section 7 | Discovered new exit (range 8) 16482 | -2/Section 7 | Entered Access 16482 | -1/Access | Evolved 2 slots: Weapon x2 16483 | -1/Access | Loaded intel: 120 machine locations 16501 | -1/Access | Spotted B-99 Colossus 16626 | -1/Access | Discovered new exit (range 7) 16627 | -1/Access | Entered Command 16628 | -1/Command | Loaded intel: 58 machine locations 16630 | -1/Command | Fired L-Cannon 16690 | -1/Command | Fired L-Cannon 16735 | -1/Command | Fired L-Cannon 16735 | -1/Command | 0b10 Conduit disabled 16751 | -1/Command | Crushed by falling debris 16752 | -1/Command | System corruption reached 10% 16759 | -1/Command | Fired L-Cannon 16762 | -1/Command | MAIN.C activated Command garrisons 16766 | -1/Command | Spotted Combat Programmer 16766 | -1/Command | Spotted Combat Programmer 16777 | -1/Command | Fired L-Cannon 16787 | -1/Command | Fired L-Cannon 16797 | -1/Command | Failed to warp due to unstable space 16798 | -1/Command | Core integrity fell below 50% 16803 | -1/Command | Core integrity fell below 20% 16803 | -1/Command | Destroyed by P-80 Master with Gamma Rifle Last Messages --------------- 16799_ Quantum Router destroyed. 16799_ Penetrated by Slug. 16799_ EMDS Slug penetrates Earth. 16799_ Med. Storage Unit destroyed. 16799_ Imp. Hacking Suite destroyed. 16800_ Penetrated by EMDS Slug. 16801_ Acquired 10 matter. 16801_ P-80 Master resets S-43 Plague, system corruption cleaned. 16801_ FLK Orb intercepted. 16801_ Penetrated by EMDS Slug. 16802_ P-80 Master resets P-80 Master, system corruption cleaned. 16802_ P-80 Master resets S-43 Plague, system corruption cleaned. 16802_ Penetrated by EMDS Slug. 16802_ Field Lobotomy Kit destroyed. 16802_ Penetrated by Slug. 16802_ Hacking Suite destroyed. 16802_ Slug penetrates P-80 Master. 16802_ Penetrated by Slug. 16803_ Quantum Router destroyed. 16803_ Knocked back. Map ----- +----------------------------------------------------+ | ?????????????????????????????????????????????????? | | ??????????????T??????????????????????????????????? | | ???????????"""???????????????????????????????????? | | ???????????"""???????????????????????????????????? | | ?????????????????????????????????????????????????? | | ?????????????????????????????????????????????????? | | ""???????????????????????????????????????????????? | | """??????????????????????????????????????????????? | | """??????????????????????????????????????????????? | | ""???????????????????????????????????????????????? | | ?????????????????????????????????????????????????? | | ?????????????????????????????????????????????????? | | ?????????????????????????????????????????????????? | | ?????????????????????????????????????????????????? | | ?????????????????????????????????????????????????? | | ?????????????????????????????????????????????????? | | ?????????????????????????????????????????????????? | | ?????????????????????????????????????????????????? | | ?""?????????????##???????????????????????????????? | | """?????????????# #??????????????????????????????? | | ?R"??????????????# #?????????????????????????????? | | """???????????????# #????????????????????????????? | | ?""???????????????## ##??????????????????????????? | | ??????????????????# #?????????????????????????? | | ?????????? ####??## ###?#????????????????????? | | ????????? # %@# #????????????????????? | | ????????? % #????????????????????? | | ?????????#;;;;;;;;;;;;;M;;;;#######??????????????? | | ???????????##### % ## ###?????????? | | ???????????????######;%%;;;;;;;""" " ######????? | | ????????????""""""" " / % """""""""""###### | | ????????????"" "" gpp" " # | | ????????????""""" "" p p#####"""""""""""" | | ????????????"""""""""" ss ggC p gC | | ????????????"? " """ sp g%%% % % | | ????????????"" ?"""""" sp pph CYC | | ????????????""??"""""" p ;p;;"############ | | ?????????????"??"""""" ph " #?????????? | | ?????????????"????? "" p """####?????????? | | ?????????????"????? "!= p ####????????????? | | ????????????"""""""" [%] """#???????????????? | | ????????????""????? !=! """#???????????????? | | ??????????????????? " """""#???????????????? | | ??????????????????? " ???" ????????????????? | | ????????????????????? "? ????"?????????????????? | | ?????????"""????????"?"? """?"?????????????????? | | ?????????"""??????"""?"?"???""""?????????????????? | | ?????????"""??????"???"?"????"???????????????????? | | ???????????????""""""""""????"???????????????????? | | ???????????????"?"""??"??""""""""????????????????? | +----------------------------------------------------+ Best States ------------- Heat Dissipation 92 Energy Generation 51 Energy Capacity 410 Matter Stores 300 Matter Capacity 300 Sight Range 16 Terrain Scan Range 14 Terrain Scan Density 10 Armor Coverage 600 Propulsion Shielding 66 Utility Shielding 90 Evasion (%) 78 Targeting Accuracy 6 Recoil Reduction 4 Offensive Hacking 54 Defensive Hacking 50 Authchip Count 2 Trap Extractor Capacity 6 Item Schematics ----------------- Med. Storage Unit | -10/Materials | Hacked Hcp. Storage Unit | -10/Materials | Hacked Lrg. Storage Unit | -10/Materials | Hacked Hacking Suite | -8/Materials | Scanalyzed Datajack | -8/Materials | Scanalyzed Structural Scanner | -7/Factory | Scanalyzed Imp. Trap Extractor | -7/Factory | Hacked Imp. Cesium-ion Thruster | -7/Factory | Scanalyzed Cld. VTOL Module | -7/Factory | Hacked Imp. Hacking Suite | -7/Factory | Hacked Adv. Hacking Suite | -7/Factory | Hacked Mak. Cloaking Device | -7/Zion | Archive Shock Absorption System | -7/Zion | Archive Lyr. Heavy Armor Plating | -7/Zion | Archive Angular Momentum Engine | -7/Zion | Archive Imp. Cooling System | -7/Zion | Archive Flak Gun | -7/Zion | Archive Nuclear Pulse Thruster | -7/Zion | Archive Imp. Shield Generator | -7/Zion | Archive Hvy. Beamcaster | -7/Zion | Archive Mak. Hammer | -7/Zion | Archive Imp. Actuator Array | -7/Zion | Archive Component Analysis Suite | -7/Zion | Archive Plasma Rifle | -7/Zion | Archive Chainsword | -7/Zion | Archive Shock Maul | -6/Factory | Hacked Stasis Canceller | -6/Factory | Hacked Exp. Utility Shielding | -6/Factory | Hacked Combat Drone Bay | -6/Data Miner | Free Lgt. Regenerative Plating | -6/Data Miner | Free Cld. Gravmag System | -6/Data Miner | Free Imp. Matter Compressor | -6/Data Miner | Free Kinetic Spear | -6/Data Miner | Free Field Propulsion Array | -6/Data Miner | Free Adv. Transmission Jammer | -6/Data Miner | Free Adv. Datajack | -6/Data Miner | Free Cmb. Gravmag System | -6/Data Miner | Free Hvy. Disruptor Cannon | -6/Data Miner | Free Adv. Coolant Injector | -6/Data Miner | Free Diametric Drive | -5/Factory | Scanalyzed Assault Drone Bay | -5/Zhirov | Free Exp. Heat Sink | -5/Zhirov | Free Exp. Optical Array | -5/Zhirov | Free Imp. Arc Thrower | -5/Zhirov | Free Gravity Flail | -4/Armory | Hacked Robot Schematics ------------------ S-27 Virus | -7/Zion | Archive K-01 Serf | -7/Zion | Archive T-07 Excavator | -7/Zion | Archive X-77 Beamer | -7/Zion | Archive I-36 Angel | -6/Data Miner | Free M-22 Extractor | -6/Data Miner | Free R-10 Processor | -6/Data Miner | Free B-60 Warrior | -6/Data Miner | Free Y-64 Sentinel | -6/Data Miner | Free Fabricated ------------ Imp. Trap Extractor | x2 | -7/Factory | Authchip Cld. VTOL Module | x1 | -7/Factory | Authchip Cld. VTOL Module | x1 | -7/Factory | Authchip Cld. VTOL Module | x1 | -7/Factory | Authchip Cld. VTOL Module | x1 | -7/Factory | Authchip Imp. Hacking Suite | x1 | -7/Factory | Authchip Imp. Hacking Suite | x1 | -7/Factory | Authchip Adv. Hacking Suite | x1 | -7/Factory | Authchip Adv. Hacking Suite | x1 | -7/Factory | Authchip Adv. Hacking Suite | x1 | -7/Factory | Authchip Shock Maul | x1 | -6/Factory | Authchip Stasis Canceller | x1 | -6/Factory | Authchip Exp. Utility Shielding | x1 | -6/Factory | Authchip Exp. Utility Shielding | x1 | -6/Factory | Authchip Diametric Drive | x1 | -5/Factory | Authchip Gravity Flail | x1 | -2/Research | Authchip Alien Tech Used ----------------- Integrated Reactor Integrated Dissipator Core Regenerator LC Capacitor Sigix Broadsword L-Cannon Transdimensional Reconstructor Achievements -------------- Maybe Next Time I'll Detach My Launcher Challenges ------------ None Game ------ Seed TrapDimensionalArmor Manual? 0 Play Time 04:23:35 Cumulative 95.7 hours Start 2024.03.27 @ 08:49:05 End 2024.04.02 @ 19:48:42 Sessions 25 Manual Loads 0 Difficulty Rogue Special Mode None Game No. 57 Rogue 57 Adventurer 0 Explorer 0 Win Type - Total 3 Types 2/0/0/1/0/0/0/0/0 Lore% 70 Gallery% 64 Achievement% 58 Wizard Run 0 Options --------- Layout 0 ASCII 0 Keyboard 1 Movement Numpad Keybinds 0 Fullscreen 1 Font 18/SmallcapsGlow Map View 76x50 Zoom Use 0% Tactical HUD 1 Map Filters NONE Filters NONE Steam 1 RUN: bc5648e6-006c-42a2-bc28-4aee88446c87